[Event "Titled Tuesday Blitz October 26 2021"]
[White "Kobalia, Mikhail"]
[Black "Yaksin, Oleg"]
[WhiteFideId "4119150"]
[BlackFideId "24105880"]
[WhiteElo "2590"]
[BlackElo "2256"]
[Result "0-1"]
[Round "10"]
[TimeControl "180+1"]
[Date "2021.10.26"]
[WhiteClock "0:00:01"]
[BlackClock "0:00:05"]

1. e4 {[%clk 0:03:00]}  c5 {[%clk 0:02:49]} 2. Nf3 {[%clk 0:02:59]}  d6 {[%clk 0:02:49]} 3. d4 {[%clk 0:02:59]}  cxd4 {[%clk 0:02:50]} 4. Nxd4 {[%clk 0:03:00]}  Nf6 {[%clk 0:02:51]} 5. Nc3 {[%clk 0:03:00]}  Nc6 {[%clk 0:02:51]} 6. Bg5 {[%clk 0:03:00]}  e6 {[%clk 0:02:51]} 7. Qd2 {[%clk 0:03:00]}  Be7 {[%clk 0:02:52]} 8. O-O-O {[%clk 0:03:00]}  Qb6 {[%clk 0:02:52]} 9. Ndb5 {[%clk 0:02:52]}  O-O {[%clk 0:02:51]} 10. Be3 {[%clk 0:02:31]}  Qa5 {[%clk 0:02:50]} 11. Kb1 {[%clk 0:02:29]}  Rd8 {[%clk 0:02:10]} 12. Be2 {[%clk 0:02:23]}  d5 {[%clk 0:01:58]} 13. exd5 {[%clk 0:02:18]}  exd5 {[%clk 0:01:50]} 14. Nd4 {[%clk 0:01:43]}  a6 {[%clk 0:01:39]} 15. g4 {[%clk 0:01:38]}  Bxg4 {[%clk 0:01:25]} 16. Rhg1 {[%clk 0:01:31]}  Bxe2 {[%clk 0:01:12]} 17. Qxe2 {[%clk 0:01:31]}  Nxd4 {[%clk 0:01:10]} 18. Bxd4 {[%clk 0:01:31]}  Re8 {[%clk 0:01:10]} 19. Qe5 {[%clk 0:01:22]}  Qd8 {[%clk 0:01:06]} 20. Nxd5 {[%clk 0:00:40]}  Qxd5 {[%clk 0:00:50]} 21. Rxg7+ {[%clk 0:00:19]}  Kf8 {[%clk 0:00:48]} 22. Qg3 {[%clk 0:00:19]}  Bc5 {[%clk 0:00:35]} 23. c3 {[%clk 0:00:13]}  Bxd4 {[%clk 0:00:33]} 24. cxd4 {[%clk 0:00:13]}  Rac8 {[%clk 0:00:31]} 25. a3 {[%clk 0:00:11]}  Re2 {[%clk 0:00:26]} 26. Rg5 {[%clk 0:00:11]}  Qc4 {[%clk 0:00:19]} 27. Qd6+ {[%clk 0:00:10]}  Ke8 {[%clk 0:00:16]} 28. Re5+ {[%clk 0:00:10]}  Rxe5 {[%clk 0:00:13]} 29. dxe5 {[%clk 0:00:10]}  Ne4 {[%clk 0:00:12]} 30. Qd7+ {[%clk 0:00:08]}  Kf8 {[%clk 0:00:12]} 31. e6 {[%clk 0:00:06]}  Qxe6 {[%clk 0:00:11]} 32. Qd4 {[%clk 0:00:06]}  Nf6 {[%clk 0:00:11]} 33. Ka1 {[%clk 0:00:05]}  Re8 {[%clk 0:00:10]} 34. Qb4+ {[%clk 0:00:05]}  Qe7 {[%clk 0:00:11]} 35. Qd4 {[%clk 0:00:05]}  Qe5 {[%clk 0:00:10]} 36. Qb4+ {[%clk 0:00:05]}  Kg7 {[%clk 0:00:10]} 37. Rg1+ {[%clk 0:00:04]}  Kh8 {[%clk 0:00:11]} 38. Qh4 {[%clk 0:00:04]}  Qf5 {[%clk 0:00:09]} 39. Qd4 {[%clk 0:00:03]}  Qe5 {[%clk 0:00:08]} 40. Qh4 {[%clk 0:00:02]}  Rg8 {[%clk 0:00:09]} 41. Rd1 {[%clk 0:00:02]}  b5 {[%clk 0:00:09]} 42. Qb4 {[%clk 0:00:01]}  Re8 {[%clk 0:00:07]} 43. Qa5 {[%clk 0:00:02]}  Qe6 {[%clk 0:00:07]} 44. Qc3 {[%clk 0:00:01]}  Qe5 {[%clk 0:00:06]} 45. Qa5 {[%clk 0:00:01]}  Ne4 {[%clk 0:00:05]} 0-1


[Site "https://www.chess.com"]

[Event "Titled Tuesday Blitz October 26 2021"]
[White "Maksimovic, Bojan"]
[Black "Hakobyan, Aram"]
[WhiteFideId "14408120"]
[BlackFideId "13306677"]
[WhiteElo "2439"]
[BlackElo "2557"]
[Result "0-1"]
[Round "10"]
[TimeControl "180+1"]
[Date "2021.10.26"]
[WhiteClock "0:00:03"]
[BlackClock "0:00:48"]

1. Nf3 {[%clk 0:03:00]}  d5 {[%clk 0:02:59]} 2. c4 {[%clk 0:03:01]}  c6 {[%clk 0:02:59]} 3. e3 {[%clk 0:03:01]}  Nf6 {[%clk 0:03:00]} 4. b3 {[%clk 0:03:01]}  Bg4 {[%clk 0:02:59]} 5. h3 {[%clk 0:02:58]}  Bxf3 {[%clk 0:02:56]} 6. Qxf3 {[%clk 0:02:59]}  e5 {[%clk 0:02:57]} 7. Bb2 {[%clk 0:02:57]}  Bd6 {[%clk 0:02:57]} 8. Nc3 {[%clk 0:02:55]}  d4 {[%clk 0:02:50]} 9. Ne4 {[%clk 0:02:51]}  Nxe4 {[%clk 0:02:51]} 10. Qxe4 {[%clk 0:02:52]}  O-O {[%clk 0:02:51]} 11. g4 {[%clk 0:02:48]}  Nd7 {[%clk 0:02:48]} 12. Qc2 {[%clk 0:02:01]}  Re8 {[%clk 0:02:41]} 13. Bd3 {[%clk 0:01:53]}  g6 {[%clk 0:02:33]} 14. O-O-O {[%clk 0:01:51]}  Nc5 {[%clk 0:02:33]} 15. h4 {[%clk 0:01:35]}  e4 {[%clk 0:02:30]} 16. Bf1 {[%clk 0:01:22]}  d3 {[%clk 0:02:30]} 17. Qb1 {[%clk 0:01:22]}  a5 {[%clk 0:02:14]} 18. h5 {[%clk 0:01:11]}  g5 {[%clk 0:02:11]} 19. f3 {[%clk 0:00:59]}  b5 {[%clk 0:01:24]} 20. cxb5 {[%clk 0:00:16]}  cxb5 {[%clk 0:01:23]} 21. Bd4 {[%clk 0:00:14]}  Rc8 {[%clk 0:01:12]} 22. Kb2 {[%clk 0:00:13]}  Be5 {[%clk 0:01:13]} 23. Bxe5 {[%clk 0:00:13]}  Rxe5 {[%clk 0:01:13]} 24. Ka1 {[%clk 0:00:10]}  exf3 {[%clk 0:01:10]} 25. Rc1 {[%clk 0:00:08]}  Rd5 {[%clk 0:01:02]} 26. Qb2 {[%clk 0:00:06]}  Rd6 {[%clk 0:01:01]} 27. h6 {[%clk 0:00:06]}  f6 {[%clk 0:00:52]} 28. Rh3 {[%clk 0:00:04]}  Rdc6 {[%clk 0:00:51]} 29. Rc3 {[%clk 0:00:04]}  Qd5 {[%clk 0:00:48]} 30. Qc1 {[%clk 0:00:03]}  Ne4 {[%clk 0:00:48]} 0-1


[Site "https://www.chess.com"]

[Event "Titled Tuesday Blitz October 26 2021"]
[White "Mamedyarov, Shakhriyar"]
[Black "Sviridov, Valery"]
[WhiteFideId "13401319"]
[BlackFideId "4120680"]
[WhiteElo "2754"]
[BlackElo "2454"]
[Result "1-0"]
[Round "10"]
[TimeControl "180+1"]
[Date "2021.10.26"]
[WhiteClock "0:00:20"]
[BlackClock "0:00:07"]

1. d4 {[%clk 0:03:00]}  g6 {[%clk 0:02:58]} 2. Nf3 {[%clk 0:02:58]}  Bg7 {[%clk 0:02:58]} 3. c4 {[%clk 0:02:57]}  d6 {[%clk 0:02:58]} 4. Nc3 {[%clk 0:02:55]}  e5 {[%clk 0:02:58]} 5. g3 {[%clk 0:02:50]}  exd4 {[%clk 0:02:57]} 6. Nxd4 {[%clk 0:02:51]}  Nf6 {[%clk 0:02:58]} 7. Bg2 {[%clk 0:02:51]}  O-O {[%clk 0:02:58]} 8. O-O {[%clk 0:02:51]}  Re8 {[%clk 0:02:58]} 9. h3 {[%clk 0:02:51]}  Nbd7 {[%clk 0:02:57]} 10. e4 {[%clk 0:02:48]}  Nc5 {[%clk 0:02:56]} 11. Re1 {[%clk 0:02:47]}  c6 {[%clk 0:02:55]} 12. Bf4 {[%clk 0:02:43]}  Nh5 {[%clk 0:02:50]} 13. Be3 {[%clk 0:02:43]}  Nf6 {[%clk 0:02:51]} 14. Qc2 {[%clk 0:02:42]}  a5 {[%clk 0:02:50]} 15. Rad1 {[%clk 0:02:41]}  Qe7 {[%clk 0:02:46]} 16. f4 {[%clk 0:02:27]}  Nfxe4 {[%clk 0:02:26]} 17. Nxe4 {[%clk 0:02:27]}  Nxe4 {[%clk 0:02:27]} 18. Bxe4 {[%clk 0:02:27]}  Qxe4 {[%clk 0:02:28]} 19. Bf2 {[%clk 0:02:26]}  Qxe1+ {[%clk 0:02:28]} 20. Bxe1 {[%clk 0:02:18]}  Bxd4+ {[%clk 0:02:27]} 21. Rxd4 {[%clk 0:02:16]}  Rxe1+ {[%clk 0:02:27]} 22. Kf2 {[%clk 0:02:16]}  Re8 {[%clk 0:01:51]} 23. g4 {[%clk 0:02:13]}  d5 {[%clk 0:01:46]} 24. cxd5 {[%clk 0:02:10]}  cxd5 {[%clk 0:01:47]} 25. f5 {[%clk 0:01:54]}  Bd7 {[%clk 0:01:31]} 26. Rxd5 {[%clk 0:01:45]}  Bc6 {[%clk 0:01:31]} 27. Rd6 {[%clk 0:01:32]}  Rad8 {[%clk 0:01:31]} 28. Qd2 {[%clk 0:01:28]}  Rxd6 {[%clk 0:01:27]} 29. Qxd6 {[%clk 0:01:29]}  gxf5 {[%clk 0:01:26]} 30. gxf5 {[%clk 0:01:29]}  Kg7 {[%clk 0:01:26]} 31. Qd4+ {[%clk 0:01:27]}  f6 {[%clk 0:01:23]} 32. Qg4+ {[%clk 0:01:17]}  Kf7 {[%clk 0:01:23]} 33. Qh4 {[%clk 0:01:17]}  Kg7 {[%clk 0:01:21]} 34. Qg3+ {[%clk 0:01:18]}  Kf7 {[%clk 0:01:06]} 35. Qc7+ {[%clk 0:01:17]}  Re7 {[%clk 0:01:06]} 36. Qxa5 {[%clk 0:01:18]}  Re5 {[%clk 0:01:07]} 37. Qc7+ {[%clk 0:01:18]}  Kf8 {[%clk 0:01:06]} 38. Qc8+ {[%clk 0:01:16]}  Kg7 {[%clk 0:01:03]} 39. Qc7+ {[%clk 0:00:59]}  Kh6 {[%clk 0:01:03]} 40. Qc8 {[%clk 0:00:59]}  Kg7 {[%clk 0:00:59]} 41. b4 {[%clk 0:00:57]}  Be4 {[%clk 0:00:59]} 42. Kg3 {[%clk 0:00:53]}  Rxf5 {[%clk 0:00:43]} 43. Qd7+ {[%clk 0:00:51]}  Kh6 {[%clk 0:00:44]} 44. Qd4 {[%clk 0:00:39]}  Rf3+ {[%clk 0:00:43]} 45. Kh2 {[%clk 0:00:39]}  f5 {[%clk 0:00:37]} 46. a4 {[%clk 0:00:36]}  Rd3 {[%clk 0:00:37]} 47. Qf6+ {[%clk 0:00:35]}  Kh5 {[%clk 0:00:37]} 48. Qf7+ {[%clk 0:00:35]}  Kh6 {[%clk 0:00:38]} 49. Qf6+ {[%clk 0:00:35]}  Kh5 {[%clk 0:00:38]} 50. Qf7+ {[%clk 0:00:35]}  Kh6 {[%clk 0:00:38]} 51. b5 {[%clk 0:00:33]}  Rd2+ {[%clk 0:00:37]} 52. Kg3 {[%clk 0:00:33]}  b6 {[%clk 0:00:10]} 53. Kh4 {[%clk 0:00:32]}  Rg2 {[%clk 0:00:09]} 54. Qf6+ {[%clk 0:00:27]}  Rg6 {[%clk 0:00:09]} 55. Qf8+ {[%clk 0:00:27]}  Rg7 {[%clk 0:00:10]} 56. Qd8 {[%clk 0:00:20]}  Rg6 {[%clk 0:00:09]} 57. Qd4 {[%clk 0:00:20]}  Bb7 {[%clk 0:00:06]} 58. Qd2+ {[%clk 0:00:19]}  Kg7 {[%clk 0:00:07]} 59. Qd7+ {[%clk 0:00:20]} 1-0


[Site "https://www.chess.com"]

[Event "Titled Tuesday Blitz October 26 2021"]
[White "Nenezic, Marko"]
[Black "Guliev, Logman"]
[WhiteFideId "912123"]
[BlackFideId "13400061"]
[WhiteElo "2484"]
[BlackElo "2128"]
[Result "1-0"]
[Round "10"]
[TimeControl "180+1"]
[Date "2021.10.26"]
[WhiteClock "0:01:24"]
[BlackClock "0:00:34"]

1. d4 {[%clk 0:03:00]}  Nf6 {[%clk 0:02:58]} 2. c4 {[%clk 0:03:01]}  e6 {[%clk 0:02:58]} 3. Nc3 {[%clk 0:03:01]}  Bb4 {[%clk 0:02:59]} 4. e3 {[%clk 0:03:01]}  O-O {[%clk 0:02:57]} 5. Ne2 {[%clk 0:03:01]}  b6 {[%clk 0:02:55]} 6. a3 {[%clk 0:02:58]}  Be7 {[%clk 0:02:54]} 7. e4 {[%clk 0:02:54]}  Bb7 {[%clk 0:02:47]} 8. Ng3 {[%clk 0:02:53]}  d6 {[%clk 0:02:42]} 9. Bd3 {[%clk 0:02:52]}  Nbd7 {[%clk 0:02:41]} 10. O-O {[%clk 0:02:52]}  c5 {[%clk 0:02:40]} 11. d5 {[%clk 0:02:52]}  Re8 {[%clk 0:02:30]} 12. f4 {[%clk 0:02:47]}  exd5 {[%clk 0:02:29]} 13. cxd5 {[%clk 0:02:48]}  Bf8 {[%clk 0:02:28]} 14. a4 {[%clk 0:02:47]}  Rc8 {[%clk 0:02:22]} 15. Re1 {[%clk 0:02:36]}  c4 {[%clk 0:02:21]} 16. Bc2 {[%clk 0:02:37]}  Nc5 {[%clk 0:02:19]} 17. Be3 {[%clk 0:02:33]}  g6 {[%clk 0:02:11]} 18. h3 {[%clk 0:02:27]}  Bg7 {[%clk 0:02:11]} 19. Bf2 {[%clk 0:02:27]}  a6 {[%clk 0:02:00]} 20. Qd2 {[%clk 0:02:25]}  Qd7 {[%clk 0:01:55]} 21. Rad1 {[%clk 0:02:24]}  Rcd8 {[%clk 0:01:46]} 22. Bxc5 {[%clk 0:02:22]}  bxc5 {[%clk 0:01:45]} 23. Qe2 {[%clk 0:02:22]}  Nxe4 {[%clk 0:01:32]} 24. Ngxe4 {[%clk 0:02:17]}  f5 {[%clk 0:01:31]} 25. Qxc4 {[%clk 0:02:04]}  fxe4 {[%clk 0:01:31]} 26. Bxe4 {[%clk 0:02:04]}  Qf7 {[%clk 0:01:28]} 27. Rf1 {[%clk 0:01:54]}  Re7 {[%clk 0:01:03]} 28. f5 {[%clk 0:01:50]}  Bd4+ {[%clk 0:00:43]} 29. Kh1 {[%clk 0:01:50]}  Rxe4 {[%clk 0:00:39]} 30. Nxe4 {[%clk 0:01:46]}  Bxd5 {[%clk 0:00:39]} 31. Qxd5 {[%clk 0:01:42]}  Qxd5 {[%clk 0:00:37]} 32. Nf6+ {[%clk 0:01:42]}  Bxf6 {[%clk 0:00:38]} 33. Rxd5 {[%clk 0:01:43]}  Bxb2 {[%clk 0:00:38]} 34. fxg6 {[%clk 0:01:42]}  hxg6 {[%clk 0:00:38]} 35. Rfd1 {[%clk 0:01:40]}  Bd4 {[%clk 0:00:37]} 36. h4 {[%clk 0:01:26]}  Kf7 {[%clk 0:00:36]} 37. Re1 {[%clk 0:01:26]}  Kf6 {[%clk 0:00:34]} 38. Kh2 {[%clk 0:01:24]}  Be5+ {[%clk 0:00:34]} 39. Rexe5 {[%clk 0:01:24]} 1-0


[Site "https://www.chess.com"]

[Event "Titled Tuesday Blitz October 26 2021"]
[White "Paltrinieri, Nicholas"]
[Black "Lazavik, Denis"]
[WhiteFideId "828262"]
[BlackFideId "13515110"]
[WhiteElo "2254"]
[BlackElo "2436"]
[Result "1/2-1/2"]
[Round "10"]
[TimeControl "180+1"]
[Date "2021.10.26"]
[WhiteClock "0:00:08"]
[BlackClock "0:00:07"]

1. d4 {[%clk 0:03:00]}  d5 {[%clk 0:02:59]} 2. Bf4 {[%clk 0:02:59]}  Nf6 {[%clk 0:02:59]} 3. e3 {[%clk 0:03:00]}  e6 {[%clk 0:02:59]} 4. Nd2 {[%clk 0:03:00]}  Bd6 {[%clk 0:03:00]} 5. Bd3 {[%clk 0:02:59]}  O-O {[%clk 0:03:00]} 6. Ngf3 {[%clk 0:02:58]}  c5 {[%clk 0:03:01]} 7. c3 {[%clk 0:02:58]}  Bxf4 {[%clk 0:02:54]} 8. exf4 {[%clk 0:02:59]}  b6 {[%clk 0:02:54]} 9. Qe2 {[%clk 0:02:59]}  a5 {[%clk 0:02:51]} 10. O-O {[%clk 0:02:58]}  Ba6 {[%clk 0:02:51]} 11. Bxa6 {[%clk 0:02:51]}  Nxa6 {[%clk 0:02:52]} 12. Ne5 {[%clk 0:02:51]}  Qc7 {[%clk 0:02:49]} 13. Rac1 {[%clk 0:02:47]}  Nb8 {[%clk 0:02:49]} 14. Rfe1 {[%clk 0:02:36]}  Nc6 {[%clk 0:02:49]} 15. Nxc6 {[%clk 0:02:26]}  Qxc6 {[%clk 0:02:50]} 16. Nf3 {[%clk 0:02:18]}  c4 {[%clk 0:02:50]} 17. Ne5 {[%clk 0:02:15]}  Qd6 {[%clk 0:02:50]} 18. h4 {[%clk 0:02:00]}  b5 {[%clk 0:02:50]} 19. h5 {[%clk 0:02:00]}  b4 {[%clk 0:02:45]} 20. h6 {[%clk 0:02:00]}  g6 {[%clk 0:02:45]} 21. g3 {[%clk 0:01:48]}  Rab8 {[%clk 0:02:42]} 22. Ng4 {[%clk 0:01:41]}  Ne4 {[%clk 0:02:40]} 23. Kg2 {[%clk 0:01:38]}  f5 {[%clk 0:02:11]} 24. f3 {[%clk 0:01:26]}  fxg4 {[%clk 0:01:51]} 25. fxe4 {[%clk 0:01:24]}  a4 {[%clk 0:01:51]} 26. exd5 {[%clk 0:01:03]}  Qxd5+ {[%clk 0:01:49]} 27. Kh2 {[%clk 0:00:56]}  a3 {[%clk 0:01:43]} 28. bxa3 {[%clk 0:00:56]}  bxa3 {[%clk 0:01:39]} 29. Rc2 {[%clk 0:00:54]}  Rb6 {[%clk 0:01:33]} 30. Qxg4 {[%clk 0:00:52]}  Rfb8 {[%clk 0:01:23]} 31. Re5 {[%clk 0:00:47]}  Qc6 {[%clk 0:01:04]} 32. Ree2 {[%clk 0:00:20]}  Rb2 {[%clk 0:01:00]} 33. Qg5 {[%clk 0:00:20]}  Rxc2 {[%clk 0:00:55]} 34. Rxc2 {[%clk 0:00:21]}  Rb1 {[%clk 0:00:55]} 35. Rg2 {[%clk 0:00:16]}  Kf7 {[%clk 0:00:40]} 36. Qe5 {[%clk 0:00:15]}  Qd5 {[%clk 0:00:25]} 37. Qg7+ {[%clk 0:00:15]}  Ke8 {[%clk 0:00:26]} 38. Qh8+ {[%clk 0:00:10]}  Kd7 {[%clk 0:00:24]} 39. Qxh7+ {[%clk 0:00:07]}  Kc6 {[%clk 0:00:25]} 40. Qxg6 {[%clk 0:00:08]}  Rb2 {[%clk 0:00:17]} 41. Rxb2 {[%clk 0:00:07]}  axb2 {[%clk 0:00:18]} 42. h7 {[%clk 0:00:08]}  Qf5 {[%clk 0:00:10]} 43. Qxf5 {[%clk 0:00:07]}  exf5 {[%clk 0:00:11]} 44. h8=Q {[%clk 0:00:08]}  b1=Q {[%clk 0:00:12]} 45. Qc8+ {[%clk 0:00:08]}  Kd5 {[%clk 0:00:08]} 46. Qd7+ {[%clk 0:00:08]}  Ke4 {[%clk 0:00:07]} 47. Qe6+ {[%clk 0:00:08]}  Kf3 {[%clk 0:00:07]} 48. Qd5+ {[%clk 0:00:08]}  Kg4 {[%clk 0:00:07]} 49. Qg8+ {[%clk 0:00:07]}  Kf3 {[%clk 0:00:07]} 50. Qd5+ {[%clk 0:00:08]}  Kg4 {[%clk 0:00:07]} 51. Qxc4 {[%clk 0:00:08]}  Qc2+ {[%clk 0:00:06]} 52. Kg1 {[%clk 0:00:08]}  Kxg3 {[%clk 0:00:06]} 53. Qg8+ {[%clk 0:00:04]}  Kxf4 {[%clk 0:00:03]} 54. Qg2 {[%clk 0:00:03]}  Qxc3 {[%clk 0:00:02]} 55. Qf2+ {[%clk 0:00:03]}  Ke4 {[%clk 0:00:02]} 56. Qe2+ {[%clk 0:00:03]}  Kxd4 {[%clk 0:00:02]} 57. Qf2+ {[%clk 0:00:04]}  Ke4 {[%clk 0:00:03]} 58. Qe2+ {[%clk 0:00:05]}  Kf4 {[%clk 0:00:03]} 59. Qf2+ {[%clk 0:00:05]}  Ke5 {[%clk 0:00:03]} 60. Qe2+ {[%clk 0:00:06]}  Kf6 {[%clk 0:00:03]} 61. Qf2 {[%clk 0:00:06]}  Qa1+ {[%clk 0:00:03]} 62. Kg2 {[%clk 0:00:06]}  Qe5 {[%clk 0:00:03]} 63. Qh4+ {[%clk 0:00:06]}  Kg6 {[%clk 0:00:02]} 64. Qg3+ {[%clk 0:00:06]}  Qxg3+ {[%clk 0:00:03]} 65. Kxg3 {[%clk 0:00:07]}  Kf6 {[%clk 0:00:04]} 66. Kf4 {[%clk 0:00:08]}  Ke6 {[%clk 0:00:04]} 67. a4 {[%clk 0:00:08]}  Kd6 {[%clk 0:00:05]} 68. a5 {[%clk 0:00:09]}  Kc6 {[%clk 0:00:06]} 69. Kxf5 {[%clk 0:00:09]}  Kb7 {[%clk 0:00:07]} 70. a6+ {[%clk 0:00:08]}  Kxa6 {[%clk 0:00:07]} 1/2-1/2


[Site "https://www.chess.com"]

[Event "Titled Tuesday Blitz October 26 2021"]
[White "Rostovtsev, Dmitry"]
[Black "Cardoso Cardoso, Jose Gabriel"]
[WhiteFideId "34278320"]
[BlackFideId "4430492"]
[WhiteElo "2294"]
[BlackElo "2343"]
[Result "0-1"]
[Round "10"]
[TimeControl "180+1"]
[Date "2021.10.26"]
[WhiteClock "0:00:00"]
[BlackClock "0:00:12"]

1. d4 {[%clk 0:03:00]}  Nf6 {[%clk 0:02:57]} 2. Bf4 {[%clk 0:03:00]}  h6 {[%clk 0:02:39]} 3. h3 {[%clk 0:02:57]}  g5 {[%clk 0:02:38]} 4. Bh2 {[%clk 0:02:57]}  Bg7 {[%clk 0:02:38]} 5. e3 {[%clk 0:02:57]}  d6 {[%clk 0:02:33]} 6. c4 {[%clk 0:02:53]}  c5 {[%clk 0:02:33]} 7. Nc3 {[%clk 0:02:50]}  O-O {[%clk 0:02:32]} 8. dxc5 {[%clk 0:02:49]}  dxc5 {[%clk 0:02:24]} 9. Qxd8 {[%clk 0:02:45]}  Rxd8 {[%clk 0:02:25]} 10. Rd1 {[%clk 0:02:39]}  Rxd1+ {[%clk 0:02:21]} 11. Kxd1 {[%clk 0:02:40]}  Nc6 {[%clk 0:02:20]} 12. Bd3 {[%clk 0:02:38]}  Be6 {[%clk 0:02:15]} 13. Nf3 {[%clk 0:02:24]}  Rd8 {[%clk 0:02:12]} 14. Ke2 {[%clk 0:01:33]}  Nb4 {[%clk 0:02:09]} 15. Rd1 {[%clk 0:01:19]}  Rxd3 {[%clk 0:01:41]} 16. Rxd3 {[%clk 0:01:18]}  Bxc4 {[%clk 0:01:41]} 17. Ne5 {[%clk 0:01:18]}  Ba6 {[%clk 0:01:31]} 18. Kd2 {[%clk 0:01:11]}  Nxd3 {[%clk 0:01:03]} 19. Nxd3 {[%clk 0:01:12]}  b6 {[%clk 0:01:03]} 20. Bb8 {[%clk 0:01:10]}  Nd7 {[%clk 0:01:02]} 21. Bxa7 {[%clk 0:01:05]}  Kf8 {[%clk 0:00:58]} 22. Nd5 {[%clk 0:01:02]}  c4 {[%clk 0:00:50]} 23. N3b4 {[%clk 0:00:56]}  Bb7 {[%clk 0:00:50]} 24. f3 {[%clk 0:00:31]}  Bxb2 {[%clk 0:00:49]} 25. Nxb6 {[%clk 0:00:28]}  Nxb6 {[%clk 0:00:45]} 26. Bxb6 {[%clk 0:00:29]}  Ke8 {[%clk 0:00:32]} 27. Bd4 {[%clk 0:00:22]}  Ba3 {[%clk 0:00:23]} 28. Nc2 {[%clk 0:00:21]}  Bd6 {[%clk 0:00:21]} 29. Kc3 {[%clk 0:00:18]}  e5 {[%clk 0:00:22]} 30. Bb6 {[%clk 0:00:17]}  e4 {[%clk 0:00:19]} 31. Nd4 {[%clk 0:00:11]}  exf3 {[%clk 0:00:19]} 32. Nxf3 {[%clk 0:00:09]}  Bd5 {[%clk 0:00:20]} 33. a4 {[%clk 0:00:09]}  Kd7 {[%clk 0:00:20]} 34. a5 {[%clk 0:00:09]}  Kc6 {[%clk 0:00:21]} 35. Bd8 {[%clk 0:00:07]}  Kb5 {[%clk 0:00:15]} 36. Nd4+ {[%clk 0:00:07]}  Ka6 {[%clk 0:00:16]} 37. Nf3 {[%clk 0:00:07]}  Bf8 {[%clk 0:00:14]} 38. Kd4 {[%clk 0:00:04]}  Be6 {[%clk 0:00:14]} 39. Bc7 {[%clk 0:00:03]}  Bb4 {[%clk 0:00:13]} 40. Be5 {[%clk 0:00:02]}  Kxa5 {[%clk 0:00:12]} 41. Nd2 {[%clk 0:00:01]}  Bxd2 {[%clk 0:00:11]} 42. Ke4 {[%clk 0:00:01]}  Kb4 {[%clk 0:00:11]} 43. Bd4 {[%clk 0:00:00]}  c3 {[%clk 0:00:12]} 0-1


[Site "https://www.chess.com"]

[Event "Titled Tuesday Blitz October 26 2021"]
[White "Schmakel, Sam"]
[Black "Zhigalko, Sergei"]
[WhiteFideId "2039311"]
[BlackFideId "13502956"]
[WhiteElo "2356"]
[BlackElo "2662"]
[Result "0-1"]
[Round "10"]
[TimeControl "180+1"]
[Date "2021.10.26"]
[WhiteClock "0:00:36"]
[BlackClock "0:00:43"]

1. Nf3 {[%clk 0:03:00]}  d5 {[%clk 0:03:00]} 2. e3 {[%clk 0:03:00]}  c6 {[%clk 0:03:00]} 3. b3 {[%clk 0:02:59]}  Bf5 {[%clk 0:02:59]} 4. Bb2 {[%clk 0:03:00]}  e6 {[%clk 0:03:00]} 5. c4 {[%clk 0:02:59]}  Nf6 {[%clk 0:03:00]} 6. Nc3 {[%clk 0:02:59]}  Be7 {[%clk 0:02:58]} 7. d4 {[%clk 0:02:56]}  O-O {[%clk 0:02:58]} 8. Bd3 {[%clk 0:02:56]}  Bxd3 {[%clk 0:02:55]} 9. Qxd3 {[%clk 0:02:57]}  Nbd7 {[%clk 0:02:55]} 10. O-O {[%clk 0:02:55]}  Qa5 {[%clk 0:02:39]} 11. a3 {[%clk 0:02:43]}  Qa6 {[%clk 0:02:39]} 12. e4 {[%clk 0:02:39]}  Rfd8 {[%clk 0:02:35]} 13. Rfd1 {[%clk 0:02:23]}  Nc5 {[%clk 0:02:04]} 14. dxc5 {[%clk 0:02:07]}  dxe4 {[%clk 0:02:04]} 15. Qe3 {[%clk 0:01:55]}  exf3 {[%clk 0:02:03]} 16. b4 {[%clk 0:01:49]}  Qxc4 {[%clk 0:01:45]} 17. Qxf3 {[%clk 0:01:45]}  a5 {[%clk 0:01:38]} 18. Na4 {[%clk 0:01:38]}  Rxd1+ {[%clk 0:01:26]} 19. Rxd1 {[%clk 0:01:38]}  Rd8 {[%clk 0:01:25]} 20. Nb6 {[%clk 0:01:32]}  Qc2 {[%clk 0:01:22]} 21. Bd4 {[%clk 0:00:45]}  e5 {[%clk 0:01:14]} 22. Re1 {[%clk 0:00:42]}  Rxd4 {[%clk 0:01:04]} 23. h3 {[%clk 0:00:43]}  Re4 {[%clk 0:00:50]} 24. Rxe4 {[%clk 0:00:38]}  Nxe4 {[%clk 0:00:46]} 25. Qf5 {[%clk 0:00:36]}  Qc1+ {[%clk 0:00:43]} 0-1


[Site "https://www.chess.com"]

[Event "Titled Tuesday Blitz October 26 2021"]
[White "Sellitti, Federico"]
[Black "Tristan, Leonardo"]
[WhiteFideId "821829"]
[BlackFideId "113816"]
[WhiteElo "2601"]
[BlackElo "2404"]
[Result "0-1"]
[Round "10"]
[TimeControl "180+1"]
[Date "2021.10.26"]
[WhiteClock "0:00:04"]
[BlackClock "0:00:12"]

1. e4 {[%clk 0:03:00]}  d5 {[%clk 0:03:00]} 2. exd5 {[%clk 0:03:00]}  Qxd5 {[%clk 0:03:01]} 3. Nc3 {[%clk 0:03:00]}  Qa5 {[%clk 0:03:01]} 4. g3 {[%clk 0:03:01]}  e5 {[%clk 0:03:01]} 5. Bg2 {[%clk 0:03:02]}  Nf6 {[%clk 0:03:01]} 6. d3 {[%clk 0:03:00]}  Bd6 {[%clk 0:03:01]} 7. Be3 {[%clk 0:03:01]}  O-O {[%clk 0:03:01]} 8. Ne2 {[%clk 0:03:01]}  c6 {[%clk 0:02:55]} 9. O-O {[%clk 0:03:02]}  Re8 {[%clk 0:02:54]} 10. a3 {[%clk 0:03:01]}  Be6 {[%clk 0:02:43]} 11. b4 {[%clk 0:02:57]}  Qc7 {[%clk 0:02:43]} 12. b5 {[%clk 0:02:57]}  Nbd7 {[%clk 0:02:43]} 13. Rb1 {[%clk 0:02:52]}  Nb6 {[%clk 0:02:37]} 14. a4 {[%clk 0:02:43]}  Nbd5 {[%clk 0:02:38]} 15. Bd2 {[%clk 0:02:41]}  Rad8 {[%clk 0:02:32]} 16. a5 {[%clk 0:02:11]}  h6 {[%clk 0:02:22]} 17. a6 {[%clk 0:02:03]}  Nxc3 {[%clk 0:02:12]} 18. Nxc3 {[%clk 0:02:02]}  Nd5 {[%clk 0:02:12]} 19. bxc6 {[%clk 0:01:37]}  bxc6 {[%clk 0:01:55]} 20. Rb7 {[%clk 0:01:37]}  Qa5 {[%clk 0:01:54]} 21. Qa1 {[%clk 0:01:34]}  Qxa1 {[%clk 0:01:46]} 22. Rxa1 {[%clk 0:01:35]}  Bc5 {[%clk 0:01:42]} 23. Na4 {[%clk 0:01:27]}  Bd4 {[%clk 0:01:21]} 24. c3 {[%clk 0:01:28]}  Bb6 {[%clk 0:01:22]} 25. Nxb6 {[%clk 0:01:25]}  axb6 {[%clk 0:01:22]} 26. Bxd5 {[%clk 0:01:24]}  Bxd5 {[%clk 0:01:20]} 27. Rxb6 {[%clk 0:01:22]}  Bf3 {[%clk 0:01:15]} 28. a7 {[%clk 0:01:19]}  c5 {[%clk 0:01:13]} 29. Be3 {[%clk 0:01:09]}  Rxd3 {[%clk 0:00:56]} 30. Rb8 {[%clk 0:01:09]}  Rdd8 {[%clk 0:00:56]} 31. Rab1 {[%clk 0:01:08]}  Kh7 {[%clk 0:00:40]} 32. Bxc5 {[%clk 0:00:43]}  g5 {[%clk 0:00:40]} 33. Be3 {[%clk 0:00:40]}  Kg6 {[%clk 0:00:39]} 34. c4 {[%clk 0:00:40]}  Kf5 {[%clk 0:00:34]} 35. c5 {[%clk 0:00:40]}  Kg4 {[%clk 0:00:29]} 36. R8b6 {[%clk 0:00:18]}  f5 {[%clk 0:00:18]} 37. Rxh6 {[%clk 0:00:15]}  f4 {[%clk 0:00:19]} 38. h3+ {[%clk 0:00:14]}  Kf5 {[%clk 0:00:19]} 39. g4+ {[%clk 0:00:14]}  Ke4 {[%clk 0:00:19]} 40. Rd6 {[%clk 0:00:06]}  fxe3 {[%clk 0:00:13]} 41. fxe3 {[%clk 0:00:05]}  Kxe3 {[%clk 0:00:13]} 42. Rbd1 {[%clk 0:00:03]}  Bxd1 {[%clk 0:00:10]} 43. Rxd8 {[%clk 0:00:02]}  Rxd8 {[%clk 0:00:11]} 44. c6 {[%clk 0:00:02]}  Bf3 {[%clk 0:00:10]} 45. c7 {[%clk 0:00:03]}  Rd1+ {[%clk 0:00:10]} 46. Kh2 {[%clk 0:00:02]}  Rh1+ {[%clk 0:00:10]} 47. Kg3 {[%clk 0:00:03]}  Rg1+ {[%clk 0:00:11]} 48. Kh2 {[%clk 0:00:03]}  Rg2+ {[%clk 0:00:11]} 49. Kh1 {[%clk 0:00:04]}  Rc2+ {[%clk 0:00:11]} 50. Kg1 {[%clk 0:00:04]}  Rxc7 {[%clk 0:00:12]} 0-1


[Site "https://www.chess.com"]